[Event "Titled Tuesday Blitz February 28 Late 2023"]
[White "Alikhanov, Felix"]
[Black "Sokac, Marko"]
[WhiteFideId "4157427"]
[BlackFideId "14531356"]
[WhiteElo "2425"]
[BlackElo "2355"]
[Result "1-0"]
[Round "10"]
[TimeControl "180+2"]
[Date "2023.02.28"]
[WhiteClock "0:00:22"]
[BlackClock "0:00:18"]

1. e4 {[%clk 0:02:59]}  d6 {[%clk 0:02:54]} 2. d4 {[%clk 0:02:58]}  Nf6 {[%clk 0:02:55]} 3. Nc3 {[%clk 0:02:59]}  c6 {[%clk 0:02:55]} 4. f4 {[%clk 0:02:59]}  Qa5 {[%clk 0:02:54]} 5. Bd3 {[%clk 0:02:58]}  e5 {[%clk 0:02:54]} 6. dxe5 {[%clk 0:02:56]}  dxe5 {[%clk 0:02:55]} 7. Nf3 {[%clk 0:02:56]}  Nbd7 {[%clk 0:02:55]} 8. O-O {[%clk 0:02:55]}  Bd6 {[%clk 0:02:45]} 9. f5 {[%clk 0:02:48]}  b5 {[%clk 0:02:35]} 10. a4 {[%clk 0:02:39]}  b4 {[%clk 0:02:34]} 11. Ne2 {[%clk 0:02:38]}  Nc5 {[%clk 0:02:14]} 12. Ng3 {[%clk 0:02:35]}  Qc7 {[%clk 0:02:08]} 13. Bg5 {[%clk 0:02:32]}  Nfd7 {[%clk 0:02:07]} 14. Nh5 {[%clk 0:02:26]}  Bf8 {[%clk 0:01:50]} 15. f6 {[%clk 0:02:24]}  g6 {[%clk 0:01:47]} 16. Ng7+ {[%clk 0:02:23]}  Kd8 {[%clk 0:01:46]} 17. Bc4 {[%clk 0:02:20]}  Nxe4 {[%clk 0:01:32]} 18. Bxf7 {[%clk 0:02:16]}  Qb6+ {[%clk 0:01:32]} 19. Kh1 {[%clk 0:02:15]}  Kc7 {[%clk 0:01:22]} 20. Bh4 {[%clk 0:02:08]}  Ndxf6 {[%clk 0:01:15]} 21. Nxe5 {[%clk 0:02:05]}  Bxg7 {[%clk 0:01:13]} 22. Qe1 {[%clk 0:01:11]}  Ba6 {[%clk 0:01:01]} 23. Rxf6 {[%clk 0:00:56]}  Nxf6 {[%clk 0:00:59]} 24. Nc4 {[%clk 0:00:50]}  Qc5 {[%clk 0:00:56]} 25. Bg3+ {[%clk 0:00:43]}  Kb7 {[%clk 0:00:47]} 26. Nd6+ {[%clk 0:00:41]}  Kb6 {[%clk 0:00:38]} 27. a5+ {[%clk 0:00:40]}  Qxa5 {[%clk 0:00:36]} 28. Rxa5 {[%clk 0:00:37]}  Kxa5 {[%clk 0:00:37]} 29. Qe5+ {[%clk 0:00:32]}  Kb6 {[%clk 0:00:28]} 30. Bf2+ {[%clk 0:00:29]}  Kc7 {[%clk 0:00:26]} 31. Ne8+ {[%clk 0:00:23]}  Kd7 {[%clk 0:00:18]} 32. Qc7# {[%clk 0:00:22]} 1-0


[Site "https://www.chess.com"]

[Event "Titled Tuesday Blitz February 28 Late 2023"]
[White "Petrovic, Aleksa"]
[Black "Diaz Perez, Michel Alejandro"]
[WhiteFideId "967629"]
[BlackFideId "3517179"]
[WhiteElo "2304"]
[BlackElo "2333"]
[Result "1-0"]
[Round "10"]
[TimeControl "180+2"]
[Date "2023.02.28"]
[WhiteClock "0:00:06"]
[BlackClock "0:00:10"]

1. d4 {[%clk 0:03:00]}  Nf6 {[%clk 0:02:59]} 2. c4 {[%clk 0:03:01]}  d6 {[%clk 0:03:00]} 3. Nf3 {[%clk 0:03:00]}  Nbd7 {[%clk 0:03:00]} 4. Nc3 {[%clk 0:02:59]}  e5 {[%clk 0:03:00]} 5. e4 {[%clk 0:02:58]}  Be7 {[%clk 0:02:59]} 6. g3 {[%clk 0:02:57]}  O-O {[%clk 0:02:58]} 7. Bg2 {[%clk 0:02:57]}  c6 {[%clk 0:02:58]} 8. O-O {[%clk 0:02:58]}  Re8 {[%clk 0:02:59]} 9. h3 {[%clk 0:02:54]}  Bf8 {[%clk 0:02:59]} 10. Qc2 {[%clk 0:02:53]}  a5 {[%clk 0:02:57]} 11. Rd1 {[%clk 0:02:49]}  Qc7 {[%clk 0:02:57]} 12. Be3 {[%clk 0:02:41]}  h6 {[%clk 0:02:56]} 13. Rac1 {[%clk 0:02:37]}  exd4 {[%clk 0:02:52]} 14. Bxd4 {[%clk 0:02:26]}  Ne5 {[%clk 0:02:52]} 15. Nxe5 {[%clk 0:02:23]}  dxe5 {[%clk 0:02:52]} 16. Be3 {[%clk 0:02:22]}  Be6 {[%clk 0:02:48]} 17. Na4 {[%clk 0:02:19]}  Nd7 {[%clk 0:02:44]} 18. c5 {[%clk 0:02:17]}  Rad8 {[%clk 0:02:35]} 19. Kh2 {[%clk 0:02:13]}  Nf6 {[%clk 0:02:34]} 20. b3 {[%clk 0:02:11]}  Be7 {[%clk 0:02:18]} 21. Nb6 {[%clk 0:02:03]}  Nh7 {[%clk 0:02:16]} 22. Bd2 {[%clk 0:01:51]}  Bg5 {[%clk 0:02:08]} 23. Bxg5 {[%clk 0:01:36]}  Nxg5 {[%clk 0:02:07]} 24. h4 {[%clk 0:01:36]}  Nh7 {[%clk 0:02:05]} 25. Rd2 {[%clk 0:01:27]}  Qe7 {[%clk 0:02:01]} 26. Rcd1 {[%clk 0:01:26]}  Nf6 {[%clk 0:01:58]} 27. Qc3 {[%clk 0:01:18]}  Rxd2 {[%clk 0:01:49]} 28. Rxd2 {[%clk 0:01:19]}  Rd8 {[%clk 0:01:49]} 29. Rxd8+ {[%clk 0:00:58]}  Qxd8 {[%clk 0:01:50]} 30. f3 {[%clk 0:00:55]}  Qd1 {[%clk 0:01:08]} 31. Qxe5 {[%clk 0:00:47]}  Qc2 {[%clk 0:01:06]} 32. g4 {[%clk 0:00:34]}  Qxa2 {[%clk 0:00:45]} 33. g5 {[%clk 0:00:23]}  hxg5 {[%clk 0:00:46]} 34. hxg5 {[%clk 0:00:23]}  Nh7 {[%clk 0:00:15]} 35. g6 {[%clk 0:00:22]}  Nf8 {[%clk 0:00:15]} 36. gxf7+ {[%clk 0:00:20]}  Bxf7 {[%clk 0:00:16]} 37. Nc8 {[%clk 0:00:20]}  Ng6 {[%clk 0:00:13]} 38. Ne7+ {[%clk 0:00:11]}  Nxe7 {[%clk 0:00:13]} 39. Qxe7 {[%clk 0:00:12]}  Qxb3 {[%clk 0:00:07]} 40. Qd8+ {[%clk 0:00:13]}  Kh7 {[%clk 0:00:07]} 41. Qh4+ {[%clk 0:00:13]}  Kg6 {[%clk 0:00:07]} 42. Qg4+ {[%clk 0:00:11]}  Kf6 {[%clk 0:00:06]} 43. Qf5+ {[%clk 0:00:11]}  Ke7 {[%clk 0:00:06]} 44. Qe5+ {[%clk 0:00:11]}  Qe6 {[%clk 0:00:06]} 45. Qc7+ {[%clk 0:00:10]}  Qd7 {[%clk 0:00:03]} 46. Qxa5 {[%clk 0:00:10]}  Kf8 {[%clk 0:00:03]} 47. Qc3 {[%clk 0:00:09]}  Qc7+ {[%clk 0:00:03]} 48. e5 {[%clk 0:00:09]}  Qe7 {[%clk 0:00:04]} 49. Qd4 {[%clk 0:00:09]}  Qg5 {[%clk 0:00:03]} 50. Bh3 {[%clk 0:00:05]}  Kg8 {[%clk 0:00:04]} 51. f4 {[%clk 0:00:04]}  Qh4 {[%clk 0:00:03]} 52. Qe3 {[%clk 0:00:03]}  Bd5 {[%clk 0:00:02]} 53. Qg3 {[%clk 0:00:03]}  Qh5 {[%clk 0:00:01]} 54. Qf2 {[%clk 0:00:02]}  Qh6 {[%clk 0:00:01]} 55. Kg3 {[%clk 0:00:02]}  Kf8 {[%clk 0:00:02]} 56. f5 {[%clk 0:00:02]}  Ke7 {[%clk 0:00:03]} 57. f6+ {[%clk 0:00:02]}  gxf6 {[%clk 0:00:03]} 58. exf6+ {[%clk 0:00:02]}  Qxf6 {[%clk 0:00:03]} 59. Qe3+ {[%clk 0:00:03]}  Qe6 {[%clk 0:00:03]} 60. Bxe6 {[%clk 0:00:02]}  Bxe6 {[%clk 0:00:04]} 61. Kf4 {[%clk 0:00:03]}  Kd7 {[%clk 0:00:05]} 62. Ke5 {[%clk 0:00:04]}  Bd5 {[%clk 0:00:05]} 63. Qh6 {[%clk 0:00:04]}  Kc7 {[%clk 0:00:06]} 64. Qd6+ {[%clk 0:00:05]}  Kc8 {[%clk 0:00:07]} 65. Kf6 {[%clk 0:00:06]}  b5 {[%clk 0:00:07]} 66. cxb6 {[%clk 0:00:06]}  Kb7 {[%clk 0:00:07]} 67. Qc7+ {[%clk 0:00:06]}  Ka6 {[%clk 0:00:08]} 68. b7 {[%clk 0:00:07]}  c5 {[%clk 0:00:09]} 69. b8=Q {[%clk 0:00:06]}  c4 {[%clk 0:00:10]} 70. Qcb6# {[%clk 0:00:06]} 1-0


[Site "https://www.chess.com"]

[Event "Titled Tuesday Blitz February 28 Late 2023"]
[White "Toncheva, Nadya"]
[Black "Gunduz, Umut Erdem"]
[WhiteFideId "2924056"]
[BlackFideId "6381383"]
[WhiteElo "2101"]
[BlackElo "2182"]
[Result "0-1"]
[Round "10"]
[TimeControl "180+2"]
[Date "2023.02.28"]
[WhiteClock "0:00:04"]
[BlackClock "0:00:07"]

1. e4 {[%clk 0:03:00]}  e5 {[%clk 0:02:57]} 2. Nf3 {[%clk 0:03:00]}  Nc6 {[%clk 0:02:57]} 3. Bb5 {[%clk 0:03:01]}  a6 {[%clk 0:02:54]} 4. Ba4 {[%clk 0:03:01]}  Nf6 {[%clk 0:02:54]} 5. O-O {[%clk 0:03:01]}  Be7 {[%clk 0:02:54]} 6. Re1 {[%clk 0:03:01]}  b5 {[%clk 0:02:54]} 7. Bb3 {[%clk 0:03:01]}  O-O {[%clk 0:02:55]} 8. a4 {[%clk 0:03:00]}  Rb8 {[%clk 0:02:53]} 9. axb5 {[%clk 0:02:58]}  axb5 {[%clk 0:02:53]} 10. d3 {[%clk 0:02:58]}  d6 {[%clk 0:02:50]} 11. h3 {[%clk 0:02:55]}  h6 {[%clk 0:02:48]} 12. Be3 {[%clk 0:02:52]}  Be6 {[%clk 0:02:44]} 13. c3 {[%clk 0:02:46]}  Qd7 {[%clk 0:02:41]} 14. Nbd2 {[%clk 0:02:44]}  d5 {[%clk 0:02:35]} 15. exd5 {[%clk 0:02:15]}  Nxd5 {[%clk 0:02:34]} 16. Ba7 {[%clk 0:01:49]}  Ra8 {[%clk 0:02:26]} 17. Nxe5 {[%clk 0:01:45]}  Nxe5 {[%clk 0:02:26]} 18. Rxe5 {[%clk 0:01:45]}  c5 {[%clk 0:02:14]} 19. Bxd5 {[%clk 0:01:12]}  Bxd5 {[%clk 0:02:13]} 20. c4 {[%clk 0:01:11]}  bxc4 {[%clk 0:01:53]} 21. dxc4 {[%clk 0:00:55]}  Be6 {[%clk 0:01:35]} 22. Bxc5 {[%clk 0:00:30]}  Rxa1 {[%clk 0:01:32]} 23. Qxa1 {[%clk 0:00:31]}  Bxc5 {[%clk 0:01:31]} 24. Rxc5 {[%clk 0:00:32]}  Qxd2 {[%clk 0:01:31]} 25. b3 {[%clk 0:00:26]}  Rd8 {[%clk 0:01:25]} 26. Ra5 {[%clk 0:00:22]}  Kh7 {[%clk 0:01:07]} 27. Qb1+ {[%clk 0:00:19]}  g6 {[%clk 0:01:05]} 28. Ra7 {[%clk 0:00:17]}  Qe2 {[%clk 0:01:02]} 29. Ra1 {[%clk 0:00:13]}  Rd2 {[%clk 0:00:59]} 30. Qe1 {[%clk 0:00:13]}  Qd3 {[%clk 0:00:52]} 31. Rb1 {[%clk 0:00:07]}  Re2 {[%clk 0:00:48]} 32. Qd1 {[%clk 0:00:07]}  Bf5 {[%clk 0:00:33]} 33. Rc1 {[%clk 0:00:05]}  Qxd1+ {[%clk 0:00:32]} 34. Rxd1 {[%clk 0:00:05]}  Rb2 {[%clk 0:00:29]} 35. g4 {[%clk 0:00:05]}  Bc2 {[%clk 0:00:19]} 36. Rd7 {[%clk 0:00:05]}  Kg7 {[%clk 0:00:18]} 37. c5 {[%clk 0:00:04]}  Bxb3 {[%clk 0:00:15]} 38. c6 {[%clk 0:00:03]}  Ba4 {[%clk 0:00:14]} 39. Rb7 {[%clk 0:00:03]}  Rc2 {[%clk 0:00:11]} 40. c7 {[%clk 0:00:03]}  Bd7 {[%clk 0:00:04]} 41. Kh2 {[%clk 0:00:03]}  g5 {[%clk 0:00:04]} 42. Kg3 {[%clk 0:00:03]}  Rc3+ {[%clk 0:00:04]} 43. f3 {[%clk 0:00:03]}  Rxf3+ {[%clk 0:00:04]} 44. Kxf3 {[%clk 0:00:02]}  Bc6+ {[%clk 0:00:05]} 45. Kg3 {[%clk 0:00:03]}  Bxb7 {[%clk 0:00:06]} 46. h4 {[%clk 0:00:04]}  Kf6 {[%clk 0:00:06]} 47. hxg5+ {[%clk 0:00:04]}  hxg5 {[%clk 0:00:07]} 0-1


[Site "https://www.chess.com"]

[Event "Titled Tuesday Blitz February 28 Late 2023"]
[White "Gerzhoy, Leonid"]
[Black "Plotkin, Victor"]
[WhiteFideId "2806126"]
[BlackFideId "2606674"]
[WhiteElo "2615"]
[BlackElo "2214"]
[Result "0-1"]
[Round "10"]
[TimeControl "180+2"]
[Date "2023.02.28"]
[WhiteClock "0:00:31"]
[BlackClock "0:00:15"]

1. d4 {[%clk 0:02:58]}  d5 {[%clk 0:02:58]} 2. c4 {[%clk 0:02:57]}  e6 {[%clk 0:02:58]} 3. Nc3 {[%clk 0:02:57]}  Nf6 {[%clk 0:02:57]} 4. Nf3 {[%clk 0:02:56]}  c5 {[%clk 0:02:56]} 5. e3 {[%clk 0:02:56]}  cxd4 {[%clk 0:02:56]} 6. exd4 {[%clk 0:02:55]}  Nc6 {[%clk 0:02:56]} 7. a3 {[%clk 0:02:52]}  dxc4 {[%clk 0:02:51]} 8. Bxc4 {[%clk 0:02:52]}  Be7 {[%clk 0:02:52]} 9. O-O {[%clk 0:02:51]}  O-O {[%clk 0:02:52]} 10. d5 {[%clk 0:02:51]}  exd5 {[%clk 0:02:52]} 11. Nxd5 {[%clk 0:02:51]}  Nxd5 {[%clk 0:02:50]} 12. Qxd5 {[%clk 0:02:51]}  Be6 {[%clk 0:02:48]} 13. Qxd8 {[%clk 0:02:49]}  Nxd8 {[%clk 0:02:46]} 14. Bxe6 {[%clk 0:02:49]}  Nxe6 {[%clk 0:02:46]} 15. Be3 {[%clk 0:02:49]}  Bf6 {[%clk 0:02:46]} 16. Rab1 {[%clk 0:02:42]}  Rfd8 {[%clk 0:02:34]} 17. b4 {[%clk 0:02:39]}  a6 {[%clk 0:02:19]} 18. a4 {[%clk 0:02:34]}  Nd4 {[%clk 0:02:11]} 19. Bxd4 {[%clk 0:02:28]}  Bxd4 {[%clk 0:02:11]} 20. b5 {[%clk 0:02:25]}  a5 {[%clk 0:01:53]} 21. g3 {[%clk 0:02:13]}  Kf8 {[%clk 0:01:50]} 22. Kg2 {[%clk 0:02:11]}  Rac8 {[%clk 0:01:48]} 23. Rbc1 {[%clk 0:02:07]}  Bf6 {[%clk 0:01:19]} 24. Rfd1 {[%clk 0:01:57]}  Rxc1 {[%clk 0:01:09]} 25. Rxc1 {[%clk 0:01:56]}  Rd7 {[%clk 0:01:05]} 26. Rc8+ {[%clk 0:01:47]}  Ke7 {[%clk 0:01:04]} 27. Ra8 {[%clk 0:01:47]}  Bc3 {[%clk 0:01:01]} 28. h4 {[%clk 0:01:36]}  Kd6 {[%clk 0:00:57]} 29. Rc8 {[%clk 0:01:30]}  Rc7 {[%clk 0:00:43]} 30. Rxc7 {[%clk 0:01:26]}  Kxc7 {[%clk 0:00:43]} 31. Kf1 {[%clk 0:01:26]}  Kd6 {[%clk 0:00:40]} 32. Ke2 {[%clk 0:01:25]}  Kc5 {[%clk 0:00:39]} 33. Kd3 {[%clk 0:01:25]}  Bf6 {[%clk 0:00:37]} 34. Nd2 {[%clk 0:01:08]}  Kb4 {[%clk 0:00:36]} 35. Ne4 {[%clk 0:01:06]}  Kxa4 {[%clk 0:00:33]} 36. Kc4 {[%clk 0:01:06]}  Be7 {[%clk 0:00:28]} 37. b6 {[%clk 0:00:48]}  Ka3 {[%clk 0:00:26]} 38. Kb5 {[%clk 0:00:42]}  Bb4 {[%clk 0:00:18]} 39. Ng5 {[%clk 0:00:35]}  Kb3 {[%clk 0:00:18]} 40. Nf3 {[%clk 0:00:31]}  Bc3 {[%clk 0:00:15]} 0-1


[Site "https://www.chess.com"]

[Event "Titled Tuesday Blitz February 28 Late 2023"]
[White "Rodrigues, Tiago Pereira"]
[Black "Ramirez Allo, Eduardo"]
[WhiteFideId "2101203"]
[BlackFideId "2224178"]
[WhiteElo "2168"]
[BlackElo "2473"]
[Result "1/2-1/2"]
[Round "10"]
[TimeControl "180+2"]
[Date "2023.02.28"]
[WhiteClock "0:00:02"]
[BlackClock "0:00:07"]

1. Nf3 {[%clk 0:02:54]}  Nf6 {[%clk 0:03:00]} 2. g3 {[%clk 0:02:53]}  g6 {[%clk 0:03:00]} 3. Bg2 {[%clk 0:02:53]}  Bg7 {[%clk 0:03:01]} 4. c3 {[%clk 0:02:54]}  O-O {[%clk 0:03:02]} 5. d4 {[%clk 0:02:55]}  d6 {[%clk 0:03:02]} 6. O-O {[%clk 0:02:56]}  Nbd7 {[%clk 0:03:03]} 7. Re1 {[%clk 0:02:55]}  c5 {[%clk 0:03:00]} 8. Na3 {[%clk 0:02:50]}  Rb8 {[%clk 0:02:59]} 9. e4 {[%clk 0:02:49]}  e6 {[%clk 0:02:59]} 10. e5 {[%clk 0:02:42]}  dxe5 {[%clk 0:02:57]} 11. dxe5 {[%clk 0:02:43]}  Nd5 {[%clk 0:02:56]} 12. c4 {[%clk 0:02:40]}  Nb4 {[%clk 0:02:55]} 13. Bg5 {[%clk 0:02:37]}  Qb6 {[%clk 0:02:44]} 14. Qd2 {[%clk 0:02:31]}  Nc6 {[%clk 0:02:39]} 15. Bh6 {[%clk 0:02:24]}  a6 {[%clk 0:02:18]} 16. h4 {[%clk 0:02:15]}  Qc7 {[%clk 0:02:16]} 17. Bxg7 {[%clk 0:02:11]}  Kxg7 {[%clk 0:02:17]} 18. Qf4 {[%clk 0:02:10]}  b6 {[%clk 0:01:49]} 19. Rad1 {[%clk 0:02:01]}  Bb7 {[%clk 0:01:11]} 20. h5 {[%clk 0:01:53]}  Kg8 {[%clk 0:00:36]} 21. Nc2 {[%clk 0:01:32]}  Rbd8 {[%clk 0:00:34]} 22. Rxd7 {[%clk 0:01:27]}  Qxd7 {[%clk 0:00:32]} 23. Ne3 {[%clk 0:01:23]}  Qe7 {[%clk 0:00:26]} 24. Ng4 {[%clk 0:01:23]}  Nd4 {[%clk 0:00:22]} 25. Nf6+ {[%clk 0:01:13]}  Kg7 {[%clk 0:00:21]} 26. Ng5 {[%clk 0:00:49]}  Bxg2 {[%clk 0:00:19]} 27. Kxg2 {[%clk 0:00:48]}  Nf5 {[%clk 0:00:12]} 28. h6+ {[%clk 0:00:35]}  Kh8 {[%clk 0:00:11]} 29. g4 {[%clk 0:00:30]}  Rd4 {[%clk 0:00:11]} 30. Re4 {[%clk 0:00:30]}  Nxh6 {[%clk 0:00:06]} 31. Rxd4 {[%clk 0:00:20]}  cxd4 {[%clk 0:00:07]} 32. Ngxh7 {[%clk 0:00:17]}  Kg7 {[%clk 0:00:08]} 33. Nxf8 {[%clk 0:00:16]}  Qxf8 {[%clk 0:00:09]} 34. Qxd4 {[%clk 0:00:13]}  Qb4 {[%clk 0:00:09]} 35. b3 {[%clk 0:00:08]}  Qe1 {[%clk 0:00:08]} 36. Qd8 {[%clk 0:00:03]}  Qxe5 {[%clk 0:00:08]} 37. Ne8+ {[%clk 0:00:03]}  Kh7 {[%clk 0:00:07]} 38. Nf6+ {[%clk 0:00:03]}  Kg7 {[%clk 0:00:08]} 39. Ne8+ {[%clk 0:00:03]}  Kf8 {[%clk 0:00:07]} 40. Nf6+ {[%clk 0:00:02]}  Kg7 {[%clk 0:00:07]} 1/2-1/2


[Site "https://www.chess.com"]

[Event "Titled Tuesday Blitz February 28 Late 2023"]
[White "Wartiovaara, Oliver"]
[Black "Pinheiro, Iung Alicio de O."]
[WhiteFideId "513024"]
[BlackFideId "2104350"]
[WhiteElo "2214"]
[BlackElo "2283"]
[Result "0-1"]
[Round "10"]
[TimeControl "180+2"]
[Date "2023.02.28"]
[WhiteClock "0:00:01"]
[BlackClock "0:00:03"]

1. Nf3 {[%clk 0:03:00]}  d5 {[%clk 0:02:59]} 2. c4 {[%clk 0:02:47]}  d4 {[%clk 0:02:58]} 3. g3 {[%clk 0:02:45]}  c5 {[%clk 0:02:55]} 4. Bg2 {[%clk 0:02:45]}  Nc6 {[%clk 0:02:55]} 5. O-O {[%clk 0:02:45]}  Nf6 {[%clk 0:02:36]} 6. d3 {[%clk 0:02:43]}  Nd7 {[%clk 0:02:24]} 7. e3 {[%clk 0:02:41]}  e5 {[%clk 0:02:24]} 8. exd4 {[%clk 0:02:41]}  cxd4 {[%clk 0:02:24]} 9. Re1 {[%clk 0:02:28]}  Be7 {[%clk 0:02:13]} 10. b3 {[%clk 0:02:18]}  O-O {[%clk 0:01:20]} 11. Ba3 {[%clk 0:02:16]}  a5 {[%clk 0:01:09]} 12. Bxe7 {[%clk 0:02:13]}  Qxe7 {[%clk 0:01:09]} 13. a3 {[%clk 0:02:07]}  Rb8 {[%clk 0:01:06]} 14. Nbd2 {[%clk 0:02:06]}  Qd8 {[%clk 0:00:56]} 15. Ne4 {[%clk 0:01:50]}  b5 {[%clk 0:00:47]} 16. Nd6 {[%clk 0:01:46]}  bxc4 {[%clk 0:00:46]} 17. Nxc8 {[%clk 0:01:38]}  Qxc8 {[%clk 0:00:44]} 18. bxc4 {[%clk 0:01:38]}  Re8 {[%clk 0:00:41]} 19. Rb1 {[%clk 0:01:27]}  Nc5 {[%clk 0:00:36]} 20. Qc2 {[%clk 0:01:21]}  Qc7 {[%clk 0:00:29]} 21. Nd2 {[%clk 0:01:17]}  h6 {[%clk 0:00:28]} 22. Rec1 {[%clk 0:01:18]}  f5 {[%clk 0:00:27]} 23. Bd5+ {[%clk 0:01:15]}  Kh8 {[%clk 0:00:27]} 24. Nf3 {[%clk 0:01:11]}  e4 {[%clk 0:00:23]} 25. dxe4 {[%clk 0:01:10]}  fxe4 {[%clk 0:00:23]} 26. Rxb8 {[%clk 0:01:02]}  Rxb8 {[%clk 0:00:19]} 27. Bxe4 {[%clk 0:00:59]}  Re8 {[%clk 0:00:16]} 28. Bd5 {[%clk 0:00:57]}  d3 {[%clk 0:00:16]} 29. Qc3 {[%clk 0:00:52]}  Ne7 {[%clk 0:00:13]} 30. Nh4 {[%clk 0:00:36]}  Qd6 {[%clk 0:00:10]} 31. Qd4 {[%clk 0:00:31]}  Rf8 {[%clk 0:00:10]} 32. Rd1 {[%clk 0:00:24]}  Nf5 {[%clk 0:00:05]} 33. Nxf5 {[%clk 0:00:23]}  Rxf5 {[%clk 0:00:05]} 34. Rxd3 {[%clk 0:00:14]}  Nxd3 {[%clk 0:00:05]} 35. Qxd3 {[%clk 0:00:15]}  Rf8 {[%clk 0:00:05]} 36. Qe3 {[%clk 0:00:12]}  a4 {[%clk 0:00:02]} 37. h4 {[%clk 0:00:08]}  Qf6 {[%clk 0:00:01]} 38. Kg2 {[%clk 0:00:07]}  Qd6 {[%clk 0:00:01]} 39. Be4 {[%clk 0:00:07]}  Rd8 {[%clk 0:00:01]} 40. Bd5 {[%clk 0:00:07]}  Qf6 {[%clk 0:00:02]} 41. Qf3 {[%clk 0:00:04]}  Qf8 {[%clk 0:00:03]} 42. Qxf8+ {[%clk 0:00:04]}  Rxf8 {[%clk 0:00:04]} 43. Bc6 {[%clk 0:00:05]}  g5 {[%clk 0:00:05]} 44. hxg5 {[%clk 0:00:04]}  hxg5 {[%clk 0:00:05]} 45. Bxa4 {[%clk 0:00:05]}  Ra8 {[%clk 0:00:04]} 46. Bc6 {[%clk 0:00:05]}  Rxa3 {[%clk 0:00:05]} 47. Bd5 {[%clk 0:00:06]}  Kg7 {[%clk 0:00:05]} 48. f4 {[%clk 0:00:05]}  Rc3 {[%clk 0:00:06]} 49. fxg5 {[%clk 0:00:05]}  Kg6 {[%clk 0:00:07]} 50. Kf2 {[%clk 0:00:04]}  Kxg5 {[%clk 0:00:07]} 51. Ke2 {[%clk 0:00:04]}  Rxg3 {[%clk 0:00:06]} 52. Kd2 {[%clk 0:00:03]}  Kf6 {[%clk 0:00:06]} 53. Ke2 {[%clk 0:00:04]}  Ke5 {[%clk 0:00:06]} 54. Kf2 {[%clk 0:00:04]}  Rc3 {[%clk 0:00:07]} 55. Ke2 {[%clk 0:00:04]}  Kf4 {[%clk 0:00:07]} 56. Kd2 {[%clk 0:00:05]}  Ra3 {[%clk 0:00:06]} 57. Kc2 {[%clk 0:00:05]}  Ke5 {[%clk 0:00:06]} 58. Kb2 {[%clk 0:00:05]}  Rg3 {[%clk 0:00:07]} 59. Bf7 {[%clk 0:00:05]}  Kd4 {[%clk 0:00:07]} 60. c5 {[%clk 0:00:05]}  Kxc5 {[%clk 0:00:06]} 61. Ka2 {[%clk 0:00:05]}  Kb4 {[%clk 0:00:07]} 62. Kb2 {[%clk 0:00:05]}  Rg2+ {[%clk 0:00:07]} 63. Ka1 {[%clk 0:00:05]}  Kc3 {[%clk 0:00:07]} 64. Ba2 {[%clk 0:00:04]}  Kc2 {[%clk 0:00:06]} 65. Bf7 {[%clk 0:00:03]}  Rg7 {[%clk 0:00:05]} 66. Ba2 {[%clk 0:00:02]}  Rb7 {[%clk 0:00:03]} 67. Be6 {[%clk 0:00:01]}  Kc3 {[%clk 0:00:03]} 0-1


[Site "https://www.chess.com"]

[Event "Titled Tuesday Blitz February 28 Late 2023"]
[White "Kovalevsky, Stanislav"]
[Black "Berezin, Viktor"]
[WhiteFideId "13508598"]
[BlackFideId "14107872"]
[WhiteElo "2220"]
[BlackElo "2310"]
[Result "0-1"]
[Round "10"]
[TimeControl "180+2"]
[Date "2023.02.28"]
[WhiteClock "0:00:19"]
[BlackClock "0:00:12"]

1. c4 {[%clk 0:03:00]}  Nf6 {[%clk 0:02:59]} 2. Nc3 {[%clk 0:03:01]}  g6 {[%clk 0:03:00]} 3. g3 {[%clk 0:03:01]}  Bg7 {[%clk 0:03:01]} 4. Bg2 {[%clk 0:03:02]}  O-O {[%clk 0:03:01]} 5. e4 {[%clk 0:03:03]}  d6 {[%clk 0:03:01]} 6. Nge2 {[%clk 0:03:03]}  Nc6 {[%clk 0:03:02]} 7. O-O {[%clk 0:03:03]}  e5 {[%clk 0:03:02]} 8. a3 {[%clk 0:03:03]}  a5 {[%clk 0:03:01]} 9. Rb1 {[%clk 0:03:03]}  Nd4 {[%clk 0:02:57]} 10. Nxd4 {[%clk 0:02:58]}  exd4 {[%clk 0:02:58]} 11. Ne2 {[%clk 0:02:59]}  Nd7 {[%clk 0:02:55]} 12. b4 {[%clk 0:02:57]}  axb4 {[%clk 0:02:54]} 13. axb4 {[%clk 0:02:58]}  d3 {[%clk 0:02:52]} 14. Nf4 {[%clk 0:02:53]}  Ne5 {[%clk 0:02:46]} 15. Qb3 {[%clk 0:02:50]}  Nc6 {[%clk 0:02:29]} 16. Bb2 {[%clk 0:02:38]}  Bxb2 {[%clk 0:02:21]} 17. Rxb2 {[%clk 0:02:35]}  Ne5 {[%clk 0:01:40]} 18. Nxd3 {[%clk 0:02:30]}  Be6 {[%clk 0:01:40]} 19. Nxe5 {[%clk 0:02:23]}  dxe5 {[%clk 0:01:41]} 20. Rd1 {[%clk 0:02:14]}  Qd4 {[%clk 0:01:37]} 21. d3 {[%clk 0:01:44]}  Rfd8 {[%clk 0:01:36]} 22. Bf3 {[%clk 0:01:42]}  b5 {[%clk 0:01:32]} 23. Qc2 {[%clk 0:01:34]}  Ra3 {[%clk 0:01:27]} 24. Rb3 {[%clk 0:01:26]}  Rda8 {[%clk 0:01:12]} 25. Rxa3 {[%clk 0:01:23]}  Rxa3 {[%clk 0:01:13]} 26. Rd2 {[%clk 0:01:10]}  Bh3 {[%clk 0:01:06]} 27. Bg2 {[%clk 0:01:05]}  Ra1+ {[%clk 0:00:54]} 28. Rd1 {[%clk 0:01:04]}  Rxd1+ {[%clk 0:00:52]} 29. Qxd1 {[%clk 0:01:05]}  Bxg2 {[%clk 0:00:52]} 30. Kxg2 {[%clk 0:00:56]}  bxc4 {[%clk 0:00:53]} 31. Qa4 {[%clk 0:00:52]}  cxd3 {[%clk 0:00:46]} 32. Kf3 {[%clk 0:00:51]}  Kg7 {[%clk 0:00:34]} 33. Qd1 {[%clk 0:00:45]}  f5 {[%clk 0:00:25]} 34. exf5 {[%clk 0:00:42]}  gxf5 {[%clk 0:00:26]} 35. Kg2 {[%clk 0:00:37]}  Qe4+ {[%clk 0:00:22]} 36. Kg1 {[%clk 0:00:31]}  Qd5 {[%clk 0:00:19]} 37. Qd2 {[%clk 0:00:29]}  Kg6 {[%clk 0:00:19]} 38. h4 {[%clk 0:00:29]}  h6 {[%clk 0:00:19]} 39. Kh2 {[%clk 0:00:22]}  Qf3 {[%clk 0:00:19]} 40. Qc3 {[%clk 0:00:18]}  Qxf2+ {[%clk 0:00:19]} 41. Kh3 {[%clk 0:00:19]}  Qf1+ {[%clk 0:00:15]} 42. Kh2 {[%clk 0:00:19]}  Qe2+ {[%clk 0:00:15]} 43. Kh3 {[%clk 0:00:19]}  Qg4+ {[%clk 0:00:11]} 44. Kh2 {[%clk 0:00:19]}  Qd4 {[%clk 0:00:11]} 45. Qc6+ {[%clk 0:00:19]}  Qd6 {[%clk 0:00:11]} 46. Qe8+ {[%clk 0:00:19]}  Kg7 {[%clk 0:00:11]} 47. h5 {[%clk 0:00:17]}  d2 {[%clk 0:00:11]} 48. Qg6+ {[%clk 0:00:18]}  Qxg6 {[%clk 0:00:11]} 49. hxg6 {[%clk 0:00:18]}  d1=Q {[%clk 0:00:11]} 50. b5 {[%clk 0:00:18]}  Qh5+ {[%clk 0:00:11]} 51. Kg2 {[%clk 0:00:18]}  Qxg6 {[%clk 0:00:12]} 52. b6 {[%clk 0:00:19]}  Qxb6 {[%clk 0:00:13]} 53. Kh3 {[%clk 0:00:19]}  f4 {[%clk 0:00:14]} 54. g4 {[%clk 0:00:19]}  f3 {[%clk 0:00:14]} 55. g5 {[%clk 0:00:18]}  f2 {[%clk 0:00:13]} 56. gxh6+ {[%clk 0:00:18]}  Kh8 {[%clk 0:00:14]} 57. h7 {[%clk 0:00:18]}  f1=Q+ {[%clk 0:00:14]} 58. Kh4 {[%clk 0:00:18]}  Qh6+ {[%clk 0:00:12]} 59. Kg4 {[%clk 0:00:19]}  Qff4# {[%clk 0:00:12]} 0-1


[Site "https://www.chess.com"]